[Event "December 19 Late 2023"]
[Site "https://www.chess.com"]
[Date "2023.12.19"]
[Round "4"]
[White "Melian, Juan Sebastian"]
[Black "Smith, Garrett L"]
[Result "1-0"]
[Board "73"]
[TimeControl "180+1"]
[WhiteFideId "3706575"]
[BlackFideId "2024829"]
[WhiteElo "2098"]
[BlackElo "2379"]
[WhiteTeam "PAR"]
[BlackTeam "USA"]
[WhiteClock "0:00:17"]
[BlackClock "0:00:20"]

1. e4 {[%clk 0:03:00]}  c5 {[%clk 0:03:00]} 2. Nf3 {[%clk 0:03:00]}  Nc6 {[%clk 0:03:00]} 3. c3 {[%clk 0:03:00]}  d5 {[%clk 0:03:00]} 4. exd5 {[%clk 0:03:00]}  Qxd5 {[%clk 0:03:01]} 5. Na3 {[%clk 0:03:01]}  Bf5 {[%clk 0:02:56]} 6. Nb5 {[%clk 0:03:00]}  O-O-O {[%clk 0:02:52]} 7. Be2 {[%clk 0:02:59]}  Bd3 {[%clk 0:02:46]} 8. O-O {[%clk 0:02:54]}  Bxe2 {[%clk 0:02:34]} 9. Qxe2 {[%clk 0:02:55]}  Qd3 {[%clk 0:02:34]} 10. Re1 {[%clk 0:02:46]}  Qxe2 {[%clk 0:02:34]} 11. Rxe2 {[%clk 0:02:47]}  e6 {[%clk 0:02:32]} 12. Na3 {[%clk 0:02:30]}  Nf6 {[%clk 0:02:26]} 13. Nc4 {[%clk 0:02:29]}  Bd6 {[%clk 0:02:12]} 14. Kf1 {[%clk 0:02:24]}  Bc7 {[%clk 0:02:09]} 15. a4 {[%clk 0:02:24]}  Rd7 {[%clk 0:02:09]} 16. Ke1 {[%clk 0:02:21]}  h6 {[%clk 0:02:06]} 17. Kd1 {[%clk 0:02:21]}  Rhd8 {[%clk 0:02:05]} 18. Kc2 {[%clk 0:02:21]}  Rd3 {[%clk 0:01:59]} 19. Ne1 {[%clk 0:02:18]}  R3d5 {[%clk 0:01:57]} 20. h3 {[%clk 0:02:18]}  a6 {[%clk 0:01:52]} 21. d3 {[%clk 0:02:12]}  Kb8 {[%clk 0:01:34]} 22. Be3 {[%clk 0:01:47]}  b6 {[%clk 0:01:33]} 23. Rd2 {[%clk 0:01:42]}  Kb7 {[%clk 0:01:32]} 24. Na3 {[%clk 0:01:35]}  Ne5 {[%clk 0:01:28]} 25. Rad1 {[%clk 0:01:34]}  g5 {[%clk 0:01:25]} 26. Nc4 {[%clk 0:01:25]}  Nxc4 {[%clk 0:01:23]} 27. dxc4 {[%clk 0:01:26]}  Rxd2+ {[%clk 0:01:22]} 28. Bxd2 {[%clk 0:01:26]}  Ne4 {[%clk 0:01:20]} 29. Be3 {[%clk 0:01:26]}  Rxd1 {[%clk 0:01:18]} 30. Kxd1 {[%clk 0:01:27]}  f5 {[%clk 0:01:17]} 31. f3 {[%clk 0:01:21]}  Nd6 {[%clk 0:01:17]} 32. b3 {[%clk 0:01:20]}  Kc6 {[%clk 0:01:17]} 33. Nd3 {[%clk 0:01:19]}  Nf7 {[%clk 0:01:16]} 34. a5 {[%clk 0:01:19]}  e5 {[%clk 0:01:15]} 35. axb6 {[%clk 0:01:19]}  Bxb6 {[%clk 0:01:16]} 36. Ke2 {[%clk 0:01:14]}  a5 {[%clk 0:01:16]} 37. Nb2 {[%clk 0:01:12]}  e4 {[%clk 0:01:13]} 38. fxe4 {[%clk 0:01:12]}  fxe4 {[%clk 0:01:14]} 39. Nd1 {[%clk 0:01:09]}  Kd6 {[%clk 0:01:10]} 40. Nf2 {[%clk 0:01:08]}  Ke5 {[%clk 0:01:08]} 41. Nd1 {[%clk 0:00:46]}  Nd8 {[%clk 0:01:03]} 42. Nb2 {[%clk 0:00:45]}  Ne6 {[%clk 0:01:02]} 43. Na4 {[%clk 0:00:39]}  Ba7 {[%clk 0:01:02]} 44. Nb2 {[%clk 0:00:33]}  Bb6 {[%clk 0:01:01]} 45. Nd1 {[%clk 0:00:32]}  Ba7 {[%clk 0:01:01]} 46. Nf2 {[%clk 0:00:32]}  h5 {[%clk 0:00:59]} 47. g3 {[%clk 0:00:31]}  h4 {[%clk 0:00:52]} 48. Ng4+ {[%clk 0:00:26]}  Kf5 {[%clk 0:00:51]} 49. Kf2 {[%clk 0:00:23]}  Bb8 {[%clk 0:00:49]} 50. gxh4 {[%clk 0:00:22]}  gxh4 {[%clk 0:00:50]} 51. Nh6+ {[%clk 0:00:21]}  Kg6 {[%clk 0:00:49]} 52. Ng8 {[%clk 0:00:20]}  Ng5 {[%clk 0:00:47]} 53. Ne7+ {[%clk 0:00:17]}  Kf6 {[%clk 0:00:44]} 54. Bxg5+ {[%clk 0:00:18]}  Kxg5 {[%clk 0:00:44]} 55. Ke3 {[%clk 0:00:18]}  Bf4+ {[%clk 0:00:33]} 56. Kxe4 {[%clk 0:00:18]}  Bd2 {[%clk 0:00:34]} 57. Nd5 {[%clk 0:00:18]}  Be1 {[%clk 0:00:33]} 58. Ke5 {[%clk 0:00:18]}  Bf2 {[%clk 0:00:30]} 59. Ke6 {[%clk 0:00:17]}  Bg1 {[%clk 0:00:29]} 60. Ke5 {[%clk 0:00:17]}  Bf2 {[%clk 0:00:29]} 61. Ke4 {[%clk 0:00:17]}  Bg1 {[%clk 0:00:29]} 62. Ne3 {[%clk 0:00:17]}  Bf2 {[%clk 0:00:28]} 63. Ng4 {[%clk 0:00:17]}  Bg1 {[%clk 0:00:28]} 64. Kf3 {[%clk 0:00:17]}  Kf5 {[%clk 0:00:20]} 65. Kg2 {[%clk 0:00:17]} 1-0

[Event "December 19 Late 2023"]
[Site "https://www.chess.com"]
[Date "2023.12.19"]
[Round "4"]
[White "Principe, Gerson"]
[Black "Korol, Dimitry"]
[Result "1-0"]
[Board "74"]
[TimeControl "180+1"]
[WhiteFideId "3804550"]
[BlackFideId "14108003"]
[WhiteElo "2186"]
[BlackElo "2262"]
[WhiteTeam "PER"]
[BlackTeam "UKR"]
[WhiteClock "0:01:02"]
[BlackClock "0:00:00"]

1. d4 {[%clk 0:03:00]}  Nf6 {[%clk 0:02:59]} 2. Nf3 {[%clk 0:03:01]}  g6 {[%clk 0:02:59]} 3. e3 {[%clk 0:03:01]}  c5 {[%clk 0:02:58]} 4. Be2 {[%clk 0:03:02]}  Bg7 {[%clk 0:02:58]} 5. O-O {[%clk 0:03:02]}  cxd4 {[%clk 0:02:50]} 6. exd4 {[%clk 0:03:02]}  d5 {[%clk 0:02:50]} 7. c4 {[%clk 0:02:52]}  O-O {[%clk 0:02:51]} 8. Nc3 {[%clk 0:02:51]}  Nc6 {[%clk 0:02:50]} 9. Be3 {[%clk 0:02:49]}  b6 {[%clk 0:02:43]} 10. Rc1 {[%clk 0:02:48]}  Bb7 {[%clk 0:02:43]} 11. Bg5 {[%clk 0:02:30]}  Ne4 {[%clk 0:01:53]} 12. Be3 {[%clk 0:02:21]}  Nxc3 {[%clk 0:01:46]} 13. Rxc3 {[%clk 0:02:15]}  dxc4 {[%clk 0:01:36]} 14. Rxc4 {[%clk 0:02:14]}  Rc8 {[%clk 0:01:35]} 15. Qd2 {[%clk 0:02:03]}  Qd7 {[%clk 0:00:40]} 16. Rfc1 {[%clk 0:02:01]}  Na5 {[%clk 0:00:17]} 17. R4c3 {[%clk 0:01:59]}  Rxc3 {[%clk 0:00:16]} 18. bxc3 {[%clk 0:01:58]}  Rc8 {[%clk 0:00:14]} 19. c4 {[%clk 0:01:57]}  Bxf3 {[%clk 0:00:11]} 20. gxf3 {[%clk 0:01:57]}  Rd8 {[%clk 0:00:09]} 21. Rd1 {[%clk 0:01:56]}  Qh3 {[%clk 0:00:07]} 22. Qe1 {[%clk 0:01:48]}  Nc6 {[%clk 0:00:06]} 23. Bf1 {[%clk 0:01:37]}  Qf5 {[%clk 0:00:06]} 24. Bd3 {[%clk 0:01:20]}  Qxf3 {[%clk 0:00:05]} 25. Be2 {[%clk 0:01:20]}  Qf5 {[%clk 0:00:05]} 26. Qc3 {[%clk 0:01:14]}  h5 {[%clk 0:00:00]} 27. Kg2 {[%clk 0:01:02]} 1-0

[Event "December 19 Late 2023"]
[Site "https://www.chess.com"]
[Date "2023.12.19"]
[Round "4"]
[White "Sivakumar, Shaaketh"]
[Black "Polster, Christian"]
[Result "1-0"]
[Board "77"]
[TimeControl "180+1"]
[WhiteFideId "30940176"]
[BlackFideId "12965081"]
[WhiteElo "2292"]
[BlackElo "2141"]
[WhiteTeam "USA"]
[BlackTeam "GER"]
[WhiteClock "0:00:24"]
[BlackClock "0:00:04"]

1. f4 {[%clk 0:02:53]}  d5 {[%clk 0:02:59]} 2. e3 {[%clk 0:02:53]}  Nf6 {[%clk 0:03:00]} 3. Nf3 {[%clk 0:02:53]}  Bg4 {[%clk 0:03:00]} 4. b3 {[%clk 0:02:53]}  e6 {[%clk 0:02:57]} 5. Bb2 {[%clk 0:02:53]}  c5 {[%clk 0:02:58]} 6. Bb5+ {[%clk 0:02:53]}  Nc6 {[%clk 0:02:58]} 7. Bxc6+ {[%clk 0:02:51]}  bxc6 {[%clk 0:02:58]} 8. O-O {[%clk 0:02:51]}  Rb8 {[%clk 0:02:53]} 9. d3 {[%clk 0:02:48]}  c4 {[%clk 0:01:59]} 10. Nbd2 {[%clk 0:02:45]}  cxd3 {[%clk 0:01:54]} 11. cxd3 {[%clk 0:02:46]}  Bf5 {[%clk 0:01:50]} 12. Ne5 {[%clk 0:02:42]}  Qb6 {[%clk 0:01:46]} 13. Qe2 {[%clk 0:02:36]}  Bd6 {[%clk 0:01:32]} 14. Rac1 {[%clk 0:02:33]}  c5 {[%clk 0:01:28]} 15. e4 {[%clk 0:02:22]}  c4+ {[%clk 0:01:21]} 16. Qf2 {[%clk 0:02:05]}  Qxf2+ {[%clk 0:01:15]} 17. Rxf2 {[%clk 0:02:06]}  dxe4 {[%clk 0:00:56]} 18. Nexc4 {[%clk 0:02:03]}  Bc5 {[%clk 0:00:48]} 19. Bxf6 {[%clk 0:01:46]}  e3 {[%clk 0:00:31]} 20. d4 {[%clk 0:01:21]}  exf2+ {[%clk 0:00:27]} 21. Kxf2 {[%clk 0:01:22]}  Ba3 {[%clk 0:00:14]} 22. Nxa3 {[%clk 0:01:15]}  gxf6 {[%clk 0:00:14]} 23. Rc7 {[%clk 0:01:16]}  O-O {[%clk 0:00:09]} 24. Rxa7 {[%clk 0:01:16]}  Ra8 {[%clk 0:00:07]} 25. Rxa8 {[%clk 0:01:00]}  Rxa8 {[%clk 0:00:08]} 26. Ndc4 {[%clk 0:01:01]}  Bd3 {[%clk 0:00:08]} 27. Nb5 {[%clk 0:00:37]}  Rxa2+ {[%clk 0:00:08]} 28. Ke3 {[%clk 0:00:37]}  Bxc4 {[%clk 0:00:07]} 29. bxc4 {[%clk 0:00:38]}  Rxg2 {[%clk 0:00:07]} 30. c5 {[%clk 0:00:37]}  Kf8 {[%clk 0:00:06]} 31. Nc3 {[%clk 0:00:32]}  Ke7 {[%clk 0:00:05]} 32. Ne4 {[%clk 0:00:29]}  Rxh2 {[%clk 0:00:04]} 33. Nd6 {[%clk 0:00:30]}  Rc2 {[%clk 0:00:03]} 34. Nc8+ {[%clk 0:00:29]}  Kd7 {[%clk 0:00:03]} 35. Nb6+ {[%clk 0:00:30]}  Kc6 {[%clk 0:00:03]} 36. Nc8 {[%clk 0:00:30]}  f5 {[%clk 0:00:03]} 37. Nd6 {[%clk 0:00:29]}  Rc3+ {[%clk 0:00:03]} 38. Kd2 {[%clk 0:00:29]}  Rf3 {[%clk 0:00:04]} 39. Nxf7 {[%clk 0:00:29]}  Rxf4 {[%clk 0:00:04]} 40. Ke3 {[%clk 0:00:29]}  Re4+ {[%clk 0:00:04]} 41. Kd3 {[%clk 0:00:29]}  h5 {[%clk 0:00:04]} 42. Ng5 {[%clk 0:00:28]}  Re1 {[%clk 0:00:04]} 43. Nf3 {[%clk 0:00:29]}  Rf1 {[%clk 0:00:04]} 44. Ne5+ {[%clk 0:00:29]}  Kd5 {[%clk 0:00:05]} 45. Nc4 {[%clk 0:00:25]}  h4 {[%clk 0:00:03]} 46. Ne3+ {[%clk 0:00:25]}  Kc6 {[%clk 0:00:03]} 47. Nxf1 {[%clk 0:00:26]}  h3 {[%clk 0:00:03]} 48. Kc4 {[%clk 0:00:24]}  f4 {[%clk 0:00:03]} 49. Nh2 {[%clk 0:00:24]}  Kc7 {[%clk 0:00:02]} 50. Nf3 {[%clk 0:00:25]}  Kb7 {[%clk 0:00:02]} 51. Kb5 {[%clk 0:00:24]}  Kc7 {[%clk 0:00:03]} 52. c6 {[%clk 0:00:24]}  Kd6 {[%clk 0:00:03]} 53. Kb6 {[%clk 0:00:24]}  Ke7 {[%clk 0:00:02]} 54. c7 {[%clk 0:00:25]}  Kd6 {[%clk 0:00:03]} 55. c8=Q {[%clk 0:00:24]}  Kd5 {[%clk 0:00:04]} 56. Qc6# {[%clk 0:00:24]} 1-0

[Event "December 19 Late 2023"]
[Site "https://www.chess.com"]
[Date "2023.12.19"]
[Round "4"]
[White "Hajiyev, Kanan"]
[Black "Schut, Han"]
[Result "1-0"]
[Board "79"]
[TimeControl "180+1"]
[WhiteFideId "13404148"]
[BlackFideId "1005561"]
[WhiteElo "2102"]
[BlackElo "2024"]
[WhiteTeam "AZE"]
[BlackTeam "NED"]
[WhiteClock "0:00:44"]
[BlackClock "0:00:00"]

1. d4 {[%clk 0:03:00]}  Nf6 {[%clk 0:02:59]} 2. Nf3 {[%clk 0:03:01]}  g6 {[%clk 0:02:59]} 3. c4 {[%clk 0:03:02]}  Bg7 {[%clk 0:03:00]} 4. g3 {[%clk 0:03:02]}  O-O {[%clk 0:03:00]} 5. Bg2 {[%clk 0:03:03]}  d5 {[%clk 0:03:00]} 6. O-O {[%clk 0:03:04]}  dxc4 {[%clk 0:03:00]} 7. Na3 {[%clk 0:03:05]}  c3 {[%clk 0:02:59]} 8. bxc3 {[%clk 0:03:06]}  c5 {[%clk 0:02:59]} 9. Nc4 {[%clk 0:03:05]}  Nc6 {[%clk 0:02:54]} 10. Bb2 {[%clk 0:03:00]}  Be6 {[%clk 0:02:33]} 11. Nfe5 {[%clk 0:02:59]}  Nxe5 {[%clk 0:02:31]} 12. Nxe5 {[%clk 0:03:00]}  cxd4 {[%clk 0:02:21]} 13. cxd4 {[%clk 0:02:59]}  Bd5 {[%clk 0:02:16]} 14. f3 {[%clk 0:02:52]}  Qb6 {[%clk 0:02:08]} 15. Ba3 {[%clk 0:02:43]}  Rfe8 {[%clk 0:01:37]} 16. e4 {[%clk 0:02:38]}  Be6 {[%clk 0:01:10]} 17. Bc5 {[%clk 0:02:34]}  Qc7 {[%clk 0:01:05]} 18. Rc1 {[%clk 0:02:30]}  b6 {[%clk 0:00:47]} 19. Ba3 {[%clk 0:02:25]}  Qb7 {[%clk 0:00:43]} 20. Qe2 {[%clk 0:02:22]}  Nd7 {[%clk 0:00:40]} 21. f4 {[%clk 0:02:20]}  Nxe5 {[%clk 0:00:38]} 22. dxe5 {[%clk 0:02:12]}  Rac8 {[%clk 0:00:34]} 23. f5 {[%clk 0:02:12]}  Rxc1 {[%clk 0:00:32]} 24. Bxc1 {[%clk 0:02:09]}  Bd7 {[%clk 0:00:27]} 25. e6 {[%clk 0:01:56]}  fxe6 {[%clk 0:00:23]} 26. fxg6 {[%clk 0:01:56]}  hxg6 {[%clk 0:00:21]} 27. Qg4 {[%clk 0:01:56]}  Kh7 {[%clk 0:00:13]} 28. Qh4+ {[%clk 0:01:53]}  Kg8 {[%clk 0:00:13]} 29. Qg5 {[%clk 0:01:54]}  Kh7 {[%clk 0:00:13]} 30. Rf4 {[%clk 0:01:53]}  Qc7 {[%clk 0:00:06]} 31. Rh4+ {[%clk 0:01:52]}  Kg8 {[%clk 0:00:07]} 32. Be3 {[%clk 0:01:48]}  Qc3 {[%clk 0:00:05]} 33. h3 {[%clk 0:01:36]}  Rf8 {[%clk 0:00:05]} 34. Kh2 {[%clk 0:01:34]}  Qe1 {[%clk 0:00:04]} 35. Bf4 {[%clk 0:00:58]}  e5 {[%clk 0:00:02]} 36. Bxe5 {[%clk 0:00:54]}  Rf2 {[%clk 0:00:00]} 37. Rf4 {[%clk 0:00:44]} 1-0

[Event "December 19 Late 2023"]
[Site "https://www.chess.com"]
[Date "2023.12.19"]
[Round "4"]
[White "Chemin, Justo Reinaldo"]
[Black "Tanenbaum, Zachary"]
[Result "0-1"]
[Board "81"]
[TimeControl "180+1"]
[WhiteFideId "2101580"]
[BlackFideId "2060850"]
[WhiteElo "1940"]
[BlackElo "2256"]
[WhiteTeam "BRA"]
[BlackTeam "USA"]
[WhiteClock "0:00:31"]
[BlackClock "0:00:15"]

1. d4 {[%clk 0:03:00]}  d5 {[%clk 0:02:58]} 2. Bf4 {[%clk 0:02:59]}  Nf6 {[%clk 0:02:58]} 3. e3 {[%clk 0:02:59]}  c5 {[%clk 0:02:58]} 4. c3 {[%clk 0:02:59]}  Nc6 {[%clk 0:02:58]} 5. Nd2 {[%clk 0:02:58]}  Qb6 {[%clk 0:02:53]} 6. Qb3 {[%clk 0:02:52]}  c4 {[%clk 0:02:51]} 7. Qc2 {[%clk 0:02:52]}  g6 {[%clk 0:02:50]} 8. Ngf3 {[%clk 0:02:49]}  Bf5 {[%clk 0:02:49]} 9. Qc1 {[%clk 0:02:48]}  Bg7 {[%clk 0:02:46]} 10. h3 {[%clk 0:02:49]}  O-O {[%clk 0:02:44]} 11. Be2 {[%clk 0:02:49]}  Qd8 {[%clk 0:02:39]} 12. O-O {[%clk 0:02:44]}  b5 {[%clk 0:02:35]} 13. Bd1 {[%clk 0:02:42]}  b4 {[%clk 0:02:30]} 14. Bc2 {[%clk 0:02:42]}  Kh8 {[%clk 0:02:09]} 15. Bxf5 {[%clk 0:02:37]}  gxf5 {[%clk 0:02:10]} 16. Ne5 {[%clk 0:02:34]}  Nxe5 {[%clk 0:02:05]} 17. Bxe5 {[%clk 0:02:31]}  bxc3 {[%clk 0:02:02]} 18. bxc3 {[%clk 0:02:30]}  e6 {[%clk 0:02:00]} 19. Rb1 {[%clk 0:02:17]}  Rg8 {[%clk 0:01:58]} 20. Rb7 {[%clk 0:02:12]}  Nd7 {[%clk 0:01:54]} 21. Bg3 {[%clk 0:02:02]}  Bh6 {[%clk 0:01:32]} 22. Nf3 {[%clk 0:01:53]}  f6 {[%clk 0:00:57]} 23. Qa3 {[%clk 0:01:47]}  Nb6 {[%clk 0:00:49]} 24. Qe7 {[%clk 0:01:25]}  Rg7 {[%clk 0:00:42]} 25. Qxd8+ {[%clk 0:01:18]}  Rxd8 {[%clk 0:00:43]} 26. Rxg7 {[%clk 0:01:18]}  Kxg7 {[%clk 0:00:40]} 27. Rb1 {[%clk 0:01:17]}  Rd7 {[%clk 0:00:38]} 28. Kf1 {[%clk 0:01:13]}  Na4 {[%clk 0:00:38]} 29. Rc1 {[%clk 0:01:03]}  Rb7 {[%clk 0:00:37]} 30. Rc2 {[%clk 0:01:02]}  Rb1+ {[%clk 0:00:31]} 31. Ke2 {[%clk 0:01:02]}  Kf7 {[%clk 0:00:29]} 32. Bd6 {[%clk 0:01:00]}  Bf8 {[%clk 0:00:25]} 33. Bxf8 {[%clk 0:00:56]}  Kxf8 {[%clk 0:00:25]} 34. Nd2 {[%clk 0:00:56]}  Rb5 {[%clk 0:00:21]} 35. f3 {[%clk 0:00:53]}  Ke7 {[%clk 0:00:20]} 36. e4 {[%clk 0:00:53]}  fxe4 {[%clk 0:00:19]} 37. fxe4 {[%clk 0:00:53]}  Ra5 {[%clk 0:00:16]} 38. exd5 {[%clk 0:00:52]}  exd5 {[%clk 0:00:17]} 39. Nf1 {[%clk 0:00:49]}  Nb6 {[%clk 0:00:16]} 40. Ne3 {[%clk 0:00:48]}  Ke6 {[%clk 0:00:16]} 41. Rb2 {[%clk 0:00:47]}  Ra3 {[%clk 0:00:16]} 42. Kd2 {[%clk 0:00:46]}  Na4 {[%clk 0:00:16]} 43. Nd1 {[%clk 0:00:44]}  Nxb2 {[%clk 0:00:15]} 44. Nxb2 {[%clk 0:00:42]}  Rxa2 {[%clk 0:00:16]} 45. Kc1 {[%clk 0:00:43]}  Kf5 {[%clk 0:00:15]} 46. Kb1 {[%clk 0:00:38]}  Rxb2+ {[%clk 0:00:15]} 47. Kxb2 {[%clk 0:00:38]}  Ke4 {[%clk 0:00:16]} 48. Kc2 {[%clk 0:00:38]}  a5 {[%clk 0:00:16]} 49. Kb2 {[%clk 0:00:36]}  Kd3 {[%clk 0:00:15]} 50. g4 {[%clk 0:00:32]}  Kd2 {[%clk 0:00:14]} 51. h4 {[%clk 0:00:32]}  a4 {[%clk 0:00:15]} 52. g5 {[%clk 0:00:32]}  fxg5 {[%clk 0:00:14]} 53. hxg5 {[%clk 0:00:33]}  a3+ {[%clk 0:00:15]} 54. Kxa3 {[%clk 0:00:32]}  Kxc3 {[%clk 0:00:16]} 55. Ka4 {[%clk 0:00:32]}  Kxd4 {[%clk 0:00:14]} 56. Kb5 {[%clk 0:00:33]}  c3 {[%clk 0:00:14]} 57. Kc6 {[%clk 0:00:34]}  c2 {[%clk 0:00:15]} 58. Kd6 {[%clk 0:00:35]}  c1=Q {[%clk 0:00:15]} 59. g6 {[%clk 0:00:31]}  Qh6 {[%clk 0:00:15]} 0-1

[Event "December 19 Late 2023"]
[Site "https://www.chess.com"]
[Date "2023.12.19"]
[Round "4"]
[White "Bru Rullo, Llatzer"]
[Black "Adla, Diego"]
[Result "0-1"]
[Board "82"]
[TimeControl "180+1"]
[WhiteFideId "22219668"]
[BlackFideId "100072"]
[WhiteElo "2190"]
[BlackElo "2377"]
[WhiteTeam "ESP"]
[BlackTeam "ARG"]
[WhiteClock "0:00:08"]
[BlackClock "0:00:39"]

1. d4 {[%clk 0:02:58]}  Nf6 {[%clk 0:02:59]} 2. c4 {[%clk 0:02:58]}  e6 {[%clk 0:02:59]} 3. Nc3 {[%clk 0:02:58]}  Bb4 {[%clk 0:02:59]} 4. e3 {[%clk 0:02:58]}  O-O {[%clk 0:02:58]} 5. Bd3 {[%clk 0:02:57]}  d5 {[%clk 0:02:57]} 6. Nf3 {[%clk 0:02:55]}  dxc4 {[%clk 0:02:57]} 7. Bxc4 {[%clk 0:02:54]}  c5 {[%clk 0:02:57]} 8. O-O {[%clk 0:02:54]}  cxd4 {[%clk 0:02:57]} 9. exd4 {[%clk 0:02:54]}  b6 {[%clk 0:02:57]} 10. a3 {[%clk 0:02:53]}  Be7 {[%clk 0:02:57]} 11. Bd3 {[%clk 0:02:50]}  Bb7 {[%clk 0:02:56]} 12. Bc2 {[%clk 0:02:50]}  Nc6 {[%clk 0:02:48]} 13. Qd3 {[%clk 0:02:47]}  g6 {[%clk 0:02:48]} 14. Bh6 {[%clk 0:02:46]}  Re8 {[%clk 0:02:47]} 15. Rad1 {[%clk 0:02:33]}  Rc8 {[%clk 0:02:47]} 16. h4 {[%clk 0:02:25]}  Nd5 {[%clk 0:02:43]} 17. Nxd5 {[%clk 0:02:14]}  Qxd5 {[%clk 0:02:40]} 18. Bb3 {[%clk 0:02:14]}  Qh5 {[%clk 0:02:32]} 19. Bg5 {[%clk 0:02:10]}  Na5 {[%clk 0:02:25]} 20. Ba4 {[%clk 0:02:05]}  Bc6 {[%clk 0:02:19]} 21. Bxc6 {[%clk 0:02:02]}  Nxc6 {[%clk 0:02:19]} 22. d5 {[%clk 0:01:56]}  Bxg5 {[%clk 0:02:14]} 23. hxg5 {[%clk 0:01:56]}  Red8 {[%clk 0:02:08]} 24. Qa6 {[%clk 0:01:47]}  exd5 {[%clk 0:02:03]} 25. Rxd5 {[%clk 0:01:42]}  Qg4 {[%clk 0:02:01]} 26. Rfd1 {[%clk 0:01:25]}  Rxd5 {[%clk 0:02:00]} 27. Rxd5 {[%clk 0:01:25]}  Qe6 {[%clk 0:01:50]} 28. Rd3 {[%clk 0:01:07]}  Re8 {[%clk 0:01:46]} 29. Re3 {[%clk 0:01:06]}  Qd7 {[%clk 0:01:46]} 30. Rxe8+ {[%clk 0:01:04]}  Qxe8 {[%clk 0:01:47]} 31. Qb7 {[%clk 0:01:02]}  Qe6 {[%clk 0:01:43]} 32. b4 {[%clk 0:00:58]}  Kg7 {[%clk 0:01:26]} 33. Qc7 {[%clk 0:00:50]}  b5 {[%clk 0:01:19]} 34. Qb7 {[%clk 0:00:34]}  Qc4 {[%clk 0:01:18]} 35. Qd7 {[%clk 0:00:28]}  h5 {[%clk 0:01:08]} 36. gxh6+ {[%clk 0:00:26]}  Kxh6 {[%clk 0:01:08]} 37. g3 {[%clk 0:00:21]}  Qe4 {[%clk 0:01:01]} 38. Kg2 {[%clk 0:00:15]}  Qxf3+ {[%clk 0:01:01]} 39. Kxf3 {[%clk 0:00:12]}  Ne5+ {[%clk 0:01:01]} 40. Ke4 {[%clk 0:00:13]}  Nxd7 {[%clk 0:01:02]} 41. Kd5 {[%clk 0:00:14]}  Kg5 {[%clk 0:00:48]} 42. Kc6 {[%clk 0:00:15]}  Nb8+ {[%clk 0:00:45]} 43. Kxb5 {[%clk 0:00:15]}  Kg4 {[%clk 0:00:45]} 44. Kc5 {[%clk 0:00:13]}  Kf3 {[%clk 0:00:45]} 45. b5 {[%clk 0:00:14]}  Kxf2 {[%clk 0:00:45]} 46. a4 {[%clk 0:00:15]}  Kxg3 {[%clk 0:00:45]} 47. a5 {[%clk 0:00:16]}  f5 {[%clk 0:00:44]} 48. Kd6 {[%clk 0:00:17]}  f4 {[%clk 0:00:44]} 49. Kc7 {[%clk 0:00:18]}  f3 {[%clk 0:00:40]} 50. Kxb8 {[%clk 0:00:10]}  f2 {[%clk 0:00:39]} 51. b6 {[%clk 0:00:11]}  axb6 {[%clk 0:00:38]} 52. a6 {[%clk 0:00:11]}  f1=Q {[%clk 0:00:39]} 53. a7 {[%clk 0:00:08]}  Qf3 {[%clk 0:00:39]} 0-1

[Event "December 19 Late 2023"]
[Site "https://www.chess.com"]
[Date "2023.12.19"]
[Round "4"]
[White "Ozen, Metehan"]
[Black "Lizak, Peter"]
[Result "1/2-1/2"]
[Board "84"]
[TimeControl "180+1"]
[WhiteFideId "34596054"]
[BlackFideId "731595"]
[WhiteElo "1710"]
[BlackElo "2420"]
[WhiteTeam "TUR"]
[BlackTeam "HUN"]
[WhiteClock "0:00:06"]
[BlackClock "0:00:06"]

1. c4 {[%clk 0:03:00]}  Nf6 {[%clk 0:02:59]} 2. Nc3 {[%clk 0:03:00]}  g6 {[%clk 0:02:58]} 3. e4 {[%clk 0:02:59]}  d6 {[%clk 0:02:56]} 4. d4 {[%clk 0:02:59]}  Bg7 {[%clk 0:02:57]} 5. h3 {[%clk 0:02:59]}  O-O {[%clk 0:02:57]} 6. Be3 {[%clk 0:02:59]}  Na6 {[%clk 0:02:54]} 7. Qd2 {[%clk 0:02:49]}  c5 {[%clk 0:02:54]} 8. Nf3 {[%clk 0:02:45]}  cxd4 {[%clk 0:02:51]} 9. Nxd4 {[%clk 0:02:43]}  Nc5 {[%clk 0:02:50]} 10. Qc2 {[%clk 0:02:38]}  Bd7 {[%clk 0:02:41]} 11. Be2 {[%clk 0:02:36]}  Bc6 {[%clk 0:02:39]} 12. Nxc6 {[%clk 0:02:34]}  bxc6 {[%clk 0:02:39]} 13. O-O {[%clk 0:02:34]}  Ncd7 {[%clk 0:02:19]} 14. Rad1 {[%clk 0:02:31]}  Qa5 {[%clk 0:02:15]} 15. b3 {[%clk 0:02:24]}  Ne8 {[%clk 0:01:47]} 16. Rc1 {[%clk 0:02:10]}  Bxc3 {[%clk 0:01:37]} 17. Qxc3 {[%clk 0:02:09]}  Qxc3 {[%clk 0:01:38]} 18. Rxc3 {[%clk 0:02:10]}  c5 {[%clk 0:01:38]} 19. Bh6 {[%clk 0:01:50]}  Nc7 {[%clk 0:01:31]} 20. f4 {[%clk 0:01:51]}  Ne6 {[%clk 0:01:25]} 21. Bg4 {[%clk 0:01:48]}  Rfe8 {[%clk 0:01:19]} 22. f5 {[%clk 0:01:42]}  gxf5 {[%clk 0:01:02]} 23. exf5 {[%clk 0:01:23]}  Nd4 {[%clk 0:01:01]} 24. Bh5 {[%clk 0:01:16]}  Kh8 {[%clk 0:00:51]} 25. Bxf7 {[%clk 0:01:12]}  Ne2+ {[%clk 0:00:50]} 26. Kh2 {[%clk 0:00:46]}  Nxc3 {[%clk 0:00:49]} 27. Re1 {[%clk 0:00:31]}  Ne5 {[%clk 0:00:44]} 28. Bxe8 {[%clk 0:00:18]}  Rxe8 {[%clk 0:00:43]} 29. a3 {[%clk 0:00:15]}  Kg8 {[%clk 0:00:42]} 30. Bd2 {[%clk 0:00:14]}  Na2 {[%clk 0:00:33]} 31. Ra1 {[%clk 0:00:12]}  Rb8 {[%clk 0:00:33]} 32. Rxa2 {[%clk 0:00:10]}  Rxb3 {[%clk 0:00:33]} 33. Bf4 {[%clk 0:00:06]}  Nxc4 {[%clk 0:00:32]} 34. Re2 {[%clk 0:00:07]}  Kf7 {[%clk 0:00:31]} 35. Bg5 {[%clk 0:00:07]}  Ne5 {[%clk 0:00:31]} 36. Re4 {[%clk 0:00:07]}  Rxa3 {[%clk 0:00:29]} 37. Rh4 {[%clk 0:00:07]}  Ra2 {[%clk 0:00:22]} 38. Kh1 {[%clk 0:00:07]}  Ra1+ {[%clk 0:00:19]} 39. Kh2 {[%clk 0:00:07]}  Ra2 {[%clk 0:00:19]} 40. Kh1 {[%clk 0:00:07]}  c4 {[%clk 0:00:11]} 41. Rxh7+ {[%clk 0:00:07]}  Kg8 {[%clk 0:00:11]} 42. Rxe7 {[%clk 0:00:07]}  c3 {[%clk 0:00:12]} 43. Rc7 {[%clk 0:00:07]}  c2 {[%clk 0:00:12]} 44. f6 {[%clk 0:00:03]}  Nf7 {[%clk 0:00:11]} 45. Bf4 {[%clk 0:00:03]}  d5 {[%clk 0:00:11]} 46. Be3 {[%clk 0:00:02]}  d4 {[%clk 0:00:10]} 47. Bxd4 {[%clk 0:00:01]}  Ra4 {[%clk 0:00:08]} 48. Kh2 {[%clk 0:00:02]}  Rxd4 {[%clk 0:00:08]} 49. Rxc2 {[%clk 0:00:02]}  Rd6 {[%clk 0:00:08]} 50. Rc8+ {[%clk 0:00:02]}  Rd8 {[%clk 0:00:06]} 51. Rc7 {[%clk 0:00:03]}  Ra8 {[%clk 0:00:06]} 52. g4 {[%clk 0:00:03]}  a5 {[%clk 0:00:06]} 53. Rc3 {[%clk 0:00:04]}  a4 {[%clk 0:00:07]} 54. Ra3 {[%clk 0:00:05]}  Kh7 {[%clk 0:00:07]} 55. Kg3 {[%clk 0:00:06]}  Kg6 {[%clk 0:00:08]} 56. h4 {[%clk 0:00:06]}  Kxf6 {[%clk 0:00:08]} 57. Kf4 {[%clk 0:00:07]}  Ne5 {[%clk 0:00:08]} 58. g5+ {[%clk 0:00:07]}  Ke6 {[%clk 0:00:09]} 59. h5 {[%clk 0:00:07]}  Nc4 {[%clk 0:00:08]} 60. Rc3 {[%clk 0:00:06]}  a3 {[%clk 0:00:08]} 61. Rxc4 {[%clk 0:00:06]}  a2 {[%clk 0:00:08]} 62. Rc6+ {[%clk 0:00:06]}  Kd5 {[%clk 0:00:09]} 63. Rc1 {[%clk 0:00:06]}  a1=Q {[%clk 0:00:09]} 64. Rxa1 {[%clk 0:00:07]}  Rxa1 {[%clk 0:00:10]} 65. Kf5 {[%clk 0:00:07]}  Rf1+ {[%clk 0:00:08]} 66. Kg6 {[%clk 0:00:08]}  Ke6 {[%clk 0:00:09]} 67. h6 {[%clk 0:00:08]}  Ke7 {[%clk 0:00:08]} 68. Kg7 {[%clk 0:00:08]}  Rh1 {[%clk 0:00:05]} 69. g6 {[%clk 0:00:08]}  Ke6 {[%clk 0:00:05]} 70. h7 {[%clk 0:00:08]}  Kf5 {[%clk 0:00:06]} 71. h8=Q {[%clk 0:00:05]}  Rxh8 {[%clk 0:00:05]} 72. Kxh8 {[%clk 0:00:06]}  Kxg6 {[%clk 0:00:06]} 1/2-1/2